bitfinex-derivatives/quotes_ETHF0:USTF0_20250126
["timestamp","ask_amount","ask_price","bid_price","bid_amount"]
[1737915876858,0.0044929,3339.8,3339.7,3.80674]
[1737915879667,0.524,3340.3,3340.2,0.59885]
[1737915879865,0.524,3340.3,3340.2,3.80665]
[1737915880461,1.59401322,3340.8,3340.4,0.59882]
[1737915880664,0.59873,3340.9,3340.4,0.59882]
[1737915880966,0.6032429,3340.8,3340.4,0.59882]
[1737915882965,0.0044929,3340.8,3340.4,0.59882]
[1737915885768,0.0044929,3340.8,3340.4,1.49691603]
[1737915885962,0.6032429,3340.8,3340.4,1.49691603]
[1737915886761,0.0044929,3340.8,3340.4,1.49691603]
[1737915887163,0.6032429,3340.8,3340.4,1.49691603]
[1737915889372,0.0044929,3340.8,3340.4,1.49691603]
[1737915889571,0.6032429,3340.8,3340.4,1.49691603]
[1737915889769,0.0044929,3340.8,3340.4,1.49691603]
[1737915890072,0.59877,3340.7,3340.4,1.49691603]
[1737915890273,0.6032429,3340.8,3340.4,1.49691603]
[1737915890474,0.0044929,3340.8,3340.4,1.49691603]
[1737915891469,0.59876,3340.7,3340.4,1.49691603]
[1737915891769,0.6032429,3340.8,3340.4,1.49691603]
[1737915892567,0.0044929,3340.8,3340.4,1.49691603]
[1737915893078,0.6032429,3340.8,3340.4,1.49691603]
[1737915894075,0.0044929,3340.8,3340.4,1.49691603]
[1737915894266,0.59879,3340.6,3340.4,1.49691603]
[1737915894663,0.665,3340.5,3340.4,1.49691603]
[1737915905983,0.1861,3340.5,3340.4,1.49691603]
[1737915914603,0.1861,3340.5,3340.4,2.25024394]
[1737915933310,0.1861,3340.5,3340.4,1.49691603]
[1737915945923,0.7849,3340.5,3340.4,1.49691603]
[1737915946119,0.7849,3340.5,3340.4,0.89809603]
[1737915946308,2.2893,3340.5,3340.4,0.89809603]
[1737915947720,2.2893,3340.5,3340.4,0.11089603]
[1737915949413,3.2333,3340.5,3340.4,0.11089603]
[1737915954822,3.2333,3340.5,3340.4,0.70971603]
[1737915956225,1.6905,3340.5,3340.4,0.70971603]
[1737915956429,1.1828,3340.5,3340.4,0.70971603]
[1737915956632,0.6647,3340.5,3340.4,0.70971603]
[1737915957432,1.2635,3340.5,3340.4,0.11089603]
[1737915960630,2.85595462,3340.5,3340.4,0.11089603]
[1737915966239,2.85595462,3340.5,3340.4,0.70971603]
[1737915967132,2.25715462,3340.5,3340.4,0.70971603]
[1737915970342,1.77855462,3340.5,3340.4,0.70971603]
[1737915971540,2.37735462,3340.5,3340.4,0.70971603]
[1737915972447,1.77855462,3340.5,3340.4,0.70971603]
[1737915982642,0.93975015,3340.5,3340.4,0.70971603]
[1737915983539,1.53855015,3340.5,3340.4,0.70971603]
[1737915989850,6.6934003,3340.5,3339.8,3.2078]
[1737915990045,1.35255015,3339.9,3339.8,3.2078]
[1737915990250,2.17195015,3339.9,3339.2,3.2078]
[1737915990446,0.59899,3339.5,3339.3,0.5225]
[1737915990749,1.0084,3339.8,3339.3,0.5225]
[1737915991243,0.59897,3339.6,3339.5,0.59897]
[1737915991848,1.35262015,3339.6,3339.5,0.59897]
[1737915992047,0.75365015,3339.6,3339.5,0.59897]
[1737916004974,0.75365015,3339.8,3339.5,0.59897]
[1737916005174,0.75365015,3340.0,3339.9,0.5989]
[1737916008576,0.75365015,3340.0,3339.8,1.0289]
[1737916008775,1.35254015,3340.0,3339.9,0.5989]
[1737916009667,0.75365015,3340.0,3339.9,0.5989]
[1737916013175,0.4876,3340.3,3339.8,1.0289]
[1737916013373,0.5011,3340.4,3340.1,3.2078]
[1737916013572,0.1861,3340.5,3340.4,0.59882]
[1737916013878,0.93975015,3340.5,3340.4,0.59882]
[1737916019187,1.53855015,3340.5,3340.4,0.59882]
[1737916019689,1.53855015,3340.5,3340.1,3.2078]
[1737916019690,0.59884,3340.3,3340.2,0.59885]
[1737916019880,1.35249015,3340.3,3340.2,0.59885]
[1737916021187,1.35249015,3340.3,3340.1,3.2078]
[1737916021188,0.59885,3340.2,3340.1,3.2078]
[1737916021379,2.10125,3340.2,3340.1,3.2078]
[1737916021581,0.5989,3339.9,3339.8,0.59892]
[1737916021783,0.75365015,3339.9,3339.5,3.2078]
[1737916022076,0.75365015,3339.6,3339.5,3.80676]
[1737916022481,1.78075015,3339.6,3339.5,3.80676]
[1737916023185,0.75365015,3339.6,3339.5,3.80676]
[1737916026787,1.35261015,3339.6,3339.5,3.2078]
[1737916027187,0.75365015,3339.6,3339.5,3.80678]
[1737916031195,0.75365015,3339.8,3339.5,3.80678]
[1737916031401,0.75365015,3340.0,3339.9,0.5989]
[1737916031700,0.5083,3340.2,3340.1,0.59887]
[1737916032399,1.10715,3340.2,3340.1,0.59887]
[1737916032599,1.10715,3340.2,3340.0,0.59888]
[1737916032803,1.25135015,3340.1,3340.0,0.59888]
[1737916033594,1.25135015,3340.1,3339.6,0.9922]
[1737916033799,0.75365015,3339.7,3339.6,1.59116]
[1737916034099,0.75365015,3339.7,3339.5,3.80676]
[1737916034100,0.59896,3339.6,3339.5,3.80676]
[1737916034300,1.58176,3339.6,3339.5,3.80676]
[1737916034494,0.9828,3339.6,3339.5,3.80676]
[1737916036906,1.58176,3339.6,3339.5,3.80676]
[1737916038204,0.9828,3339.6,3339.5,3.80676]
[1737916038801,1.58176,3339.6,3339.5,3.80676]
[1737916039497,1.58176,3339.6,3339.5,3.2078]
[1737916040804,1.58176,3339.6,3339.5,3.80678]
[1737916043006,0.9828,3339.6,3339.5,3.80678]
[1737916046206,0.9828,3339.6,3339.5,0.59898]
[1737916047110,2.19178981,3339.8,3339.2,0.5183]
[1737916047309,2.19178981,3339.8,3339.7,0.59894]
[1737916049505,1.59284981,3339.8,3339.7,0.59894]
[1737916050206,1.017,3340.0,3339.9,0.5989]
[1737916051114,1.61589,3340.0,3339.9,0.5989]
[1737916052314,1.017,3340.0,3339.9,0.5989]
[1737916052609,1.61589,3340.0,3339.9,0.5989]
[1737916052912,1.59284981,3340.1,3340.0,0.59889]
[1737916053306,1.61647,3340.2,3339.7,2.00044]
[1737916053508,1.61647,3340.2,3340.1,0.59887]
[1737916055511,1.0176,3340.2,3340.1,0.59887]
[1737916055715,3.2078,3340.3,3340.2,0.59885]
[1737916057628,0.75358487,3340.4,3340.3,0.59883]
[1737916058627,0.75358487,3340.4,3340.1,0.4902]
[1737916058628,0.7849,3340.5,3340.4,0.59882]
[1737916059128,0.1861,3340.5,3340.4,0.59882]
[1737916061030,0.1861,3340.5,3340.4,1.59372]
[1737916078245,0.1861,3340.5,3340.4,0.59882]
[1737916091453,0.1861,3340.5,3340.4,3.80662]
[1737916101758,0.1861,3340.5,3340.4,0.59882]
[1737916102151,0.1861,3340.5,3340.4,3.80662]
[1737916125072,0.1861,3340.5,3340.4,4.70471603]
[1737916141192,0.75350984,3341.3,3341.2,0.59867]
[1737916141388,1.73160984,3341.3,3341.2,0.59867]
[1737916149898,1.25440984,3341.3,3341.2,0.59867]
[1737916154501,0.75350984,3341.3,3341.2,0.59867]
[1737916154701,0.5038,3341.5,3341.4,0.59864]
[1737916154702,0.75350984,3341.5,3341.4,0.59864]
[1737916156503,0.0044929,3341.6,3341.5,0.59862]
[1737916157010,0.0044929,3341.6,3341.5,1.35212984]
[1737916170021,0.75350984,3342.3,3341.5,0.75350984]
[1737916170211,0.75350984,3342.3,3342.2,0.59849]
[1737916170814,2.32065984,3342.5,3342.3,0.59847]
[1737916172518,1.72220984,3342.5,3342.1,3.96130984]
[1737916172819,1.72220984,3342.5,3342.4,0.59846]
[1737916174815,0.9687,3342.5,3342.4,0.59846]
[1737916179821,0.9687,3342.5,3342.4,1.11096]
[1737916182025,0.0044929,3342.7,3342.6,0.59842]
[1737916182216,0.0044929,3342.7,3342.6,3.80622]
[1737916186830,0.59844,3342.5,3342.4,0.89755864]
[1737916187030,1.35194984,3342.5,3342.4,0.89755864]
[1737916188430,0.75350984,3342.5,3342.4,1.49601864]
[1737916190332,0.484,3342.6,3342.5,0.59844]
[1737916193432,0.59844,3342.5,3342.4,0.89755864]
[1737916193629,1.11994,3342.5,3342.4,1.49601864]
[1737916196030,0.5215,3342.5,3342.4,1.49601864]
[1737916199431,0.484,3342.6,3342.4,0.89755864]
[1737916199735,0.484,3342.6,3342.5,0.59844]
[1737916200941,0.0044929,3342.7,3342.6,0.59842]
[1737916202339,0.0044929,3342.7,3342.6,1.09602]
[1737916203442,3.2078,3343.4,3343.3,0.5983]
[1737916205243,0.75800274,3343.7,3343.2,1.76980984]
[1737916205430,0.0044929,3343.7,3343.6,1.35174984]
[1737916206539,0.0044929,3343.7,3343.5,0.59825]
[1737916206540,0.6027229,3343.7,3343.5,0.59825]
[1737916206844,0.6027229,3343.7,3343.6,0.59824]
[1737916206845,0.0044929,3343.7,3343.6,0.59824]
[1737916212248,0.6027129,3343.7,3343.6,0.59824]
[1737916212445,0.0044929,3343.7,3343.6,0.59824]
[1737916212950,0.6027229,3343.7,3343.6,0.59824]
[1737916213151,0.0044929,3343.7,3343.6,0.59824]
[1737916213850,0.6027129,3343.7,3343.6,0.59824]
[1737916215054,0.59826,3343.5,3343.4,3.2078]
[1737916215648,1.62016,3343.5,3343.4,3.2078]
[1737916216049,0.59828,3343.4,3343.3,0.89731702]
[1737916216249,1.09818,3343.4,3343.3,0.89731702]
[1737916216547,0.4999,3343.4,3343.0,3.2122929]
[1737916216748,0.4999,3343.4,3342.4,0.89755864]
[1737916216749,0.59844,3342.5,3342.4,0.89755864]
[1737916216955,2.18710262,3342.5,3342.4,0.89755864]
[1737916219854,3.16120262,3342.5,3342.4,0.89755864]
[1737916221558,7.56276262,3342.5,3342.1,0.00448611]
[1737916221755,0.5986,3341.6,3341.5,3.2078]
[1737916223652,0.59863,3341.5,3341.3,1.58924]
[1737916224751,0.59862,3341.6,3341.3,1.58924]
[1737916225654,0.59862,3341.6,3341.4,0.59864]
[1737916226459,0.5986,3341.7,3341.4,0.59864]
[1737916227556,0.4968,3341.8,3341.4,0.59864]
[1737916227756,0.5986,3341.6,3341.4,0.59864]
[1737916228659,0.5986,3341.7,3341.4,0.59864]
[1737916229062,0.59858,3341.7,3341.3,1.58924]
[1737916229358,0.59862,3341.5,3341.3,1.58924]
[1737916229658,0.59862,3341.5,3341.3,0.9906]
[1737916230461,0.59862,3341.5,3341.3,1.58925]
[1737916230657,0.9763,3341.8,3341.3,1.58925]
[1737916230854,0.59864,3341.4,3341.3,0.5155]
[1737916233364,2.53066262,3341.6,3341.3,0.5155]
[1737916233662,0.59863,3341.5,3341.3,1.11415]
[1737916233963,0.59863,3341.5,3341.3,0.5155]
[1737916234265,0.59863,3341.5,3341.4,0.59864]
[1737916238469,0.942,3341.7,3341.3,0.5155]
[1737916238968,0.59864,3341.4,3341.3,0.5155]
[1737916252183,2.04856262,3341.6,3341.2,0.00448611]
[1737916252383,0.59865,3341.3,3341.2,0.00448611]
[1737916254683,0.942,3341.7,3341.2,0.00448611]
[1737916254879,3.80637,3341.8,3341.7,0.59858]
[1737916255083,4.74837,3341.8,3341.7,0.59858]
[1737916255283,0.59859,3341.7,3341.6,0.5986]
[1737916256379,3.80637,3341.8,3341.6,0.5986]
[1737916256594,3.80637,3341.8,3341.7,1.07848]
[1737916258094,3.2078,3341.8,3341.7,1.07848]
[1737916258294,3.80636,3341.8,3341.7,1.07848]
[1737916259592,3.80636,3341.8,3341.7,0.4799]
[1737916259793,3.80636,3341.8,3341.7,1.07848]
[1737916260092,3.80636,3341.8,3341.7,0.4799]
[1737916261784,4.26646,3341.8,3341.7,0.4799]
[1737916262397,0.59865,3341.3,3341.2,0.00448611]
[1737916263885,4.972,3341.2,3338.8,3.2078]
[1737916264087,8.17732524,3341.3,3338.0,4.68031501]
[1737916264088,2.99437,3340.1,3338.4,1.08287]
[1737916264293,4.79646262,3338.9,3338.4,0.4837]
[1737916264491,0.991,3338.8,3338.4,0.4837]
[1737916264691,0.59915,3338.6,3338.4,0.4837]
[1737916265090,0.59912,3338.7,3338.4,0.4837]
[1737916265291,0.59914,3338.6,3338.4,0.4837]
[1737916265494,0.9954929,3338.8,3338.4,0.4837]
[1737916265794,0.59913,3338.7,3338.4,1.08287]
[1737916265989,0.59912,3338.7,3338.4,0.4837]
[1737916266882,0.9954929,3338.8,3338.4,0.4837]
[1737916267109,0.59913,3338.7,3338.4,0.4837]
[1737916267398,0.9954929,3338.8,3338.4,0.4837]
[1737916267593,0.9954929,3338.8,3338.6,0.59913]
[1737916267800,0.0044929,3338.8,3338.7,0.59912]
[1737916281603,4.70497,3340.2,3338.6,1.58866262]
[1737916281809,0.982,3340.1,3339.3,3.2078]
[1737916282105,0.59895,3339.7,3339.5,0.59898]
[1737916282494,0.59895,3339.7,3339.3,3.2078]
[1737916282700,0.6034229,3339.8,3339.7,0.59894]
[1737916282899,0.6034229,3339.8,3339.6,0.59895]
[1737916283103,0.6034229,3339.8,3339.7,0.59894]
[1737916283404,0.0044929,3339.8,3339.7,0.59894]
[1737916297903,0.0044929,3339.8,3339.7,3.80674]
[1737916300919,0.38335,3340.5,3340.4,0.59882]
[1737916306521,0.59883,3340.4,3340.3,0.59883]
[1737916308121,0.38335,3340.5,3340.1,3.2122929]
[1737916308415,0.38335,3340.5,3340.4,0.59882]
[1737916308416,0.98216,3340.5,3340.4,0.59882]
[1737916308720,0.38335,3340.5,3340.1,3.2122929]
[1737916308919,0.98216,3340.5,3340.4,0.59882]
[1737916309418,0.59882,3340.4,3340.3,0.59882]
[1737916309922,0.38335,3340.5,3340.1,3.2122929]
[1737916310123,0.98216,3340.5,3340.4,0.59882]
[1737916310319,0.38335,3340.5,3340.4,0.59882]
[1737916323734,0.38335,3340.5,3340.4,1.07892]
[1737916334130,0.38335,3340.5,3340.4,1.97701603]
[1737916344944,0.38335,3340.5,3340.4,2.87511206]
[1737916353648,1.1368827,3340.5,3340.4,2.87511206]
[1737916354650,0.38335,3340.5,3340.4,2.87511206]
[1737916356050,0.7535327,3340.7,3340.6,0.59878]
[1737916360052,0.0044929,3340.8,3340.6,3.2078]
[1737916360260,0.0044929,3340.8,3340.7,0.59876]
[1737916361757,0.7535327,3341.1,3341.0,0.59871]
[1737916361954,0.7535327,3341.3,3341.2,0.59867]
[1737916364952,0.7535327,3341.3,3341.2,1.07257]
[1737916365148,0.0044929,3341.6,3341.2,1.07257]
[1737916365149,0.7535327,3341.5,3341.4,0.59864]
[1737916365355,0.0044929,3341.6,3341.4,3.2078]
[1737916365553,0.0044929,3341.6,3341.5,1.08932]
[1737916372361,0.0044929,3341.6,3341.5,4.29712]
[1737916384188,0.0044929,3341.6,3341.5,1.08932]
[1737916384384,0.0044929,3341.6,3341.5,4.29712]
[1737916416201,2.9e-06,3341.6,3341.5,4.29712]
[1737916416407,0.7535327,3343.1,3343.0,0.59835]
[1737916417203,4.5985,3343.2,3343.1,0.59833]
[1737916417604,1.3907,3343.2,3343.1,0.59833]
[1737916418305,0.9062,3343.2,3343.1,0.59833]
[1737916418509,0.5138,3343.2,3343.1,0.59833]
[1737916418709,0.00293711,3343.5,3343.4,0.59828]
[1737916418913,0.00293711,3343.5,3343.4,3.80608]
[1737916424913,0.3923,3344.1,3343.4,3.80608]
[1737916425116,0.3923,3344.1,3344.0,3.80597]
[1737916426311,0.9819,3344.4,3344.3,0.59812]
[1737916426815,1.3736,3344.4,3344.3,0.59812]
[1737916427113,1.3736,3344.4,3344.0,3.2078]
[1737916427416,0.7535327,3344.3,3344.2,0.59813]
[1737916428311,1.3736,3344.4,3344.3,0.59812]
[1737916429005,0.498,3344.4,3344.3,0.59812]
[1737916429519,0.7535327,3344.7,3344.6,0.59806]
[1737916429712,1.3461,3344.8,3344.7,0.59805]
[1737916431713,0.874,3344.8,3344.7,0.59805]
[1737916431909,3.2078,3344.9,3344.8,0.59803]
[1737916433615,3.9613327,3344.9,3344.5,0.00448597]
[1737916433815,1.3515927,3344.6,3344.5,0.00448597]
[1737916436613,0.59806,3344.6,3344.5,0.00448597]
[1737916438420,0.59806,3344.6,3344.5,0.60256597]
[1737916439523,0.59806,3344.7,3344.5,0.60256597]
[1737916439723,1.58802764,3344.8,3344.5,0.00448597]
[1737916439919,3.2078,3344.9,3344.8,0.59803]
[1737916439920,3.80582,3344.9,3344.8,0.59803]
[1737916440134,0.3912,3345.0,3344.5,0.00448597]
[1737916440429,0.3912,3345.0,3344.9,0.59801]
[1737916441524,0.98919,3345.0,3344.9,0.59801]
[1737916442428,0.3912,3345.0,3344.5,0.49008597]
[1737916442621,0.59803,3344.8,3344.7,0.59804]
[1737916442819,0.3912,3345.0,3344.5,0.00448597]
[1737916443020,0.59806,3344.6,3344.5,0.00448597]
[1737916443722,0.59806,3344.6,3344.3,0.8970487]
[1737916443723,5.0,3344.6,3344.3,0.8970487]
[1737916443928,1.58802764,3344.4,3343.9,3.2078]
[1737916444229,0.59817,3344.0,3343.9,3.2078]
[1737916444821,0.59814,3344.2,3344.1,0.59815]
[1737916445530,0.59814,3344.2,3344.0,0.59816]
[1737916445824,0.59814,3344.2,3343.9,3.2078]
[1737916445825,0.59814,3344.2,3344.1,0.59815]
[1737916446036,0.59816,3344.1,3344.0,0.59816]
[1737916446220,0.59816,3344.1,3343.9,3.80598]
[1737916446416,0.00446289,3344.3,3343.9,3.80598]
[1737916446627,0.59817,3344.0,3343.9,3.80598]
[1737916447726,0.00446289,3344.3,3343.9,3.2078]
[1737916448033,0.59815,3344.1,3344.0,0.59816]
[1737916448235,0.59813,3344.2,3344.0,0.59816]
[1737916448529,0.59815,3344.2,3344.0,0.59816]
[1737916448726,0.00446289,3344.3,3343.9,3.2078]
[1737916448929,0.00446289,3344.3,3344.2,0.59813]
[1737916457136,0.00446289,3344.3,3344.0,0.9625]
[1737916457437,0.5982,3343.9,3343.7,1.07821]
[1737916457935,0.59821,3343.8,3343.7,1.07821]
[1737916458436,0.59814,3344.2,3344.1,0.59815]
[1737916458632,0.59814,3344.2,3343.7,0.48]
[1737916458838,0.48776289,3344.3,3343.7,0.48]
[1737916459341,0.59821,3343.8,3343.7,1.07822]
[1737916460037,0.48776289,3344.3,3343.7,0.48]
[1737916460244,0.59821,3343.8,3343.7,1.07821]
[1737916460738,1.58802764,3344.1,3343.5,3.2078]
[1737916460941,0.59822,3343.8,3343.7,0.59822]
[1737916465036,0.59822,3343.8,3343.4,1.0199]
[1737916465037,3.2078,3344.0,3343.4,1.0199]
[1737916465237,0.59822,3343.7,3343.4,0.59827]
[1737916466042,0.59822,3343.7,3343.5,0.59825]
[1737916466542,0.59819,3343.9,3343.8,0.5982]
[1737916467643,3.2078,3344.0,3343.9,0.59819]
[1737916469637,0.59814,3344.2,3343.6,1.50008597]
[1737916469839,0.59814,3344.2,3344.1,0.59815]
[1737916470943,0.00446289,3344.3,3343.6,0.00448597]
[1737916471347,0.00446289,3344.3,3343.9,0.59818]
[1737916471545,0.48786289,3344.3,3343.9,0.59818]
[1737916471747,0.00446289,3344.3,3344.0,0.59817]
[1737916471948,0.00446289,3344.3,3344.2,0.59813]
[1737916472838,0.60258289,3344.3,3344.2,0.59813]
[1737916473443,0.00446289,3344.3,3344.2,0.59813]
[1737916473751,0.00446289,3344.3,3344.2,2.18615764]
[1737916475547,2.43791,3345.2,3344.2,2.18615764]
[1737916475548,3.2078,3345.2,3344.2,1.58802764]
[1737916475748,3.2078,3345.2,3344.9,0.59801]
[1737916475943,0.59799,3345.1,3345.0,1.09209]
[1737916476441,0.59799,3345.1,3345.0,0.4941]
[1737916476751,0.59799,3345.1,3345.0,1.09209]
[1737916476952,0.59799,3345.1,3345.0,0.4941]
[1737916477452,0.59799,3345.1,3345.0,1.0123]
[1737916478536,0.59799,3345.1,3345.0,1.61029]
[1737916478942,3.2078,3345.2,3345.1,0.59797]
[1737916480145,3.2078,3345.2,3345.1,1.07937]
[1737916483756,3.2078,3345.2,3344.9,0.598]
[1737916483757,0.598,3345.0,3344.9,0.598]
[1737916484052,0.598,3345.0,3344.9,1.60151]
[1737916484351,3.80577,3345.2,3345.0,0.59797]
[1737916484960,3.80577,3345.2,3345.1,0.59797]
[1737916485256,3.2078,3345.2,3345.1,0.59797]
[1737916485659,3.80576,3345.2,3345.1,0.59797]
[1737916487849,3.2078,3345.2,3345.1,0.59797]
[1737916494456,3.2078,3345.2,3345.1,1.49480417]
[1737916496450,0.59794,3345.3,3345.1,1.49480417]
[1737916496658,0.59794,3345.3,3345.2,0.59796]
[1737916497353,3.2078,3345.6,3345.1,0.89683417]
[1737916497554,0.59794,3345.4,3345.3,0.59793]
[1737916499461,3.2078,3345.6,3345.1,0.89683417]
[1737916499657,0.59796,3345.2,3345.1,0.89683417]
[1737916500753,3.80576,3345.2,3345.1,0.89683417]
[1737916501668,5.56808,3344.5,3343.6,0.00448597]
[1737916501858,0.59831,3343.2,3343.1,2.4e-06]
[1737916502055,7.27264764,3343.2,3341.7,10.22827251]
[1737916502259,3.2078,3342.7,3341.8,4.79582764]
[1737916502463,3.2078,3342.7,3342.3,0.59846]
[1737916502863,3.2078,3342.7,3342.4,0.9789]
[1737916503064,3.2078,3342.7,3342.5,0.59843]
[1737916503454,3.2078,3342.7,3342.6,0.59842]
[1737916503860,0.00448597,3342.8,3342.7,0.5984]
[1737916504065,0.00448597,3342.8,3342.4,0.9789]
[1737916504269,0.00448597,3342.8,3342.6,0.59841]
[1737916505069,0.00448597,3342.8,3342.7,0.5984]
[1737916505269,0.00448597,3342.8,3342.6,0.59841]
[1737916507363,0.00448597,3342.8,3342.4,0.9789]
[1737916507564,0.00448597,3342.8,3342.5,0.59844]
[1737916507764,0.00448597,3342.8,3342.6,0.59842]
[1737916508663,0.00448597,3342.8,3342.6,0.59841]
[1737916510174,0.00448597,3342.8,3342.4,2.56692764]
[1737916510476,3.2078,3343.2,3342.7,1.58802764]
[1737916510678,3.2078,3343.2,3343.1,0.59833]
[1737916511173,3.2078,3343.2,3342.8,0.4935]
[1737916511377,3.2078,3343.2,3343.0,0.59833]
[1737916511874,3.2078,3343.2,3343.1,1.11233]
[1737916514274,0.59827,3343.5,3343.2,0.59831]
[1737916514470,0.59827,3343.5,3343.3,0.4889]
[1737916514675,4.79582764,3343.6,3343.3,0.4889]
[1737916514887,0.59826,3343.5,3343.3,1.08719]
[1737916515083,5.39406764,3343.6,3343.3,1.08719]
[1737916515587,0.59826,3343.5,3343.3,1.08719]
[1737916516478,5.39406764,3343.6,3343.4,0.59828]
[1737916516680,5.39406764,3343.6,3343.3,1.08719]
[1737916517277,4.79582764,3343.6,3343.3,1.08719]
[1737916517482,0.59827,3343.5,3343.3,1.08719]
[1737916518485,4.79582764,3343.6,3343.3,0.4889]
[1737916518687,0.59826,3343.5,3343.3,1.08719]
[1737916523097,0.59826,3343.5,3343.4,0.59828]
[1737916525298,4.79582764,3343.6,3343.4,0.59828]
[1737916525487,5.39408764,3343.6,3343.4,0.59828]
[1737916526496,0.59826,3343.5,3343.4,0.59828]
[1737916527701,4.79582764,3343.6,3343.3,0.4889]
[1737916528001,1.58802764,3343.6,3343.5,0.59826]
[1737916532097,2.18622764,3343.9,3343.7,0.59821]
[1737916532301,2.18621764,3343.9,3343.8,0.5122]
[1737916538698,2.18621764,3343.9,3343.8,1.11041]
[1737916539307,3.2078,3344.0,3343.8,0.5122]
[1737916539506,3.2078,3344.0,3343.9,1.09919]
[1737916540511,3.80597,3344.0,3343.9,1.09919]
[1737916541499,3.2078,3344.0,3343.9,1.09919]
[1737916548115,3.2078,3344.0,3343.9,1.99634601]
[1737916551213,3.80597,3344.0,3343.9,1.99634601]
[1737916552215,3.2078,3344.0,3343.9,1.99634601]
[1737916554514,3.95978005,3344.0,3343.9,1.99634601]
[1737916557714,0.75198005,3344.0,3343.9,1.99634601]
[1737916559116,0.75198005,3344.0,3343.9,2.89350202]
[1737916564322,0.75198005,3344.0,3343.9,0.83594657]
[1737916564517,0.75198005,3344.0,3343.9,1.73310258]
[1737916565027,0.75198005,3344.2,3344.0,0.59817]
[1737916565217,0.75198005,3344.2,3344.1,0.7337958]
[1737916566324,1.35012005,3344.2,3344.1,0.7337958]
[1737916573923,1.35012005,3344.2,3344.1,0.0312625]
[1737916574123,1.35012005,3344.2,3344.0,0.5119]
[1737916574323,1.35012005,3344.2,3343.9,1.71362282]
[1737916574524,1.35012005,3344.2,3344.1,0.59815]
[1737916574725,0.59817,3344.0,3343.9,1.71362282]
[1737916574935,5.3099301,3344.0,3343.9,1.71362282]
[1737916581432,4.55795005,3344.0,3343.9,1.71362282]
[1737916583525,5.3099301,3344.0,3343.9,1.71362282]
[1737916585832,10.3099301,3344.0,3343.9,0.77932004]
[1737916586229,0.59819,3343.9,3343.8,0.88383377]
[1737916586438,1.57019,3343.9,3343.8,0.88383377]
[1737916586735,6.57019,3343.9,3343.8,0.88383377]
[1737916589540,1.57019,3343.9,3343.8,0.88383377]
[1737916590634,6.57019,3343.9,3343.8,0.88383377]
[1737916591439,0.59833,3343.1,3343.0,0.4875]
[1737916591639,1.35031005,3343.1,3343.0,0.4875]
[1737916601245,2.1022901,3343.1,3343.0,0.4875]
[1737916601433,1.35031005,3343.1,3343.0,0.4875]
[1737916608459,2.1022901,3343.1,3343.0,0.4875]
[1737916609247,1.35031005,3343.1,3343.0,0.4875]
[1737916609441,2.1022901,3343.1,3343.0,0.4875]
[1737916609944,0.59837,3342.9,3342.8,0.5011]
[1737916610156,1.71498005,3342.9,3342.3,0.9841]
[1737916610348,0.59846,3342.4,3342.3,1.58256]
[1737916610747,0.59846,3342.4,3342.3,1.58258]
[1737916611047,3.2078,3342.5,3342.4,0.59846]
[1737916611248,3.95978005,3342.5,3342.4,0.59846]
[1737916620951,4.55822005,3342.5,3342.4,0.59846]
[1737916621254,3.95978005,3342.5,3342.4,0.59846]
[1737916637186,0.75198005,3342.5,3342.4,0.59846]
[1737916638973,0.59846,3342.4,3342.3,1.58256]
[1737916639386,1.12186,3342.4,3342.3,0.59846]
[1737916641084,0.5234,3342.4,3342.3,0.59846]
[1737916642582,1.35043005,3342.5,3342.4,0.59846]
[1737916646392,0.59848,3342.4,3342.3,0.59846]
[1737916646582,1.35046005,3342.4,3342.3,0.59846]
[1737916646781,0.75198005,3342.4,3342.3,0.59846]
[1737916647585,0.75198005,3342.4,3342.3,1.07816]
[1737916648182,0.75198005,3342.6,3342.4,0.59846]
[1737916648489,0.75198005,3342.6,3342.5,1.11884]
[1737916657584,1.35040005,3342.6,3342.5,1.11884]
[1737916657888,1.35040005,3342.6,3342.5,0.59844]
[1737916658089,0.75198005,3342.6,3342.2,0.52238597]
[1737916658287,1.35046005,3342.3,3342.2,1.12086597]
[1737916658590,1.35046005,3342.3,3342.2,0.00448597]
[1737916659991,2.1024401,3342.3,3342.2,0.00448597]
[1737916660197,0.59856,3341.8,3341.6,1.09189]
[1737916660498,1.35054005,3341.8,3341.6,1.09189]
[1737916662702,2.18953215,3341.8,3341.6,0.4933]
[1737916662894,2.18953215,3341.8,3341.5,0.5179]
[1737916663294,2.71383215,3341.8,3341.5,0.5179]
[1737916663497,2.71383215,3341.8,3341.4,0.60310597]
[1737916663694,2.71383215,3341.8,3341.4,0.00448597]
[1737916663890,2.71383215,3341.8,3341.5,0.59861]
[1737916666400,2.71383215,3341.8,3341.4,0.60310597]
[1737916668902,2.71383215,3341.8,3341.4,0.00448597]
[1737916669106,2.71383215,3341.8,3341.5,0.59861]
[1737916669505,2.71383215,3341.8,3341.6,0.4901]
[1737916672805,2.71383215,3341.8,3341.7,1.0085]
[1737916673194,1.59097215,3341.8,3341.7,1.0085]
[1737916673401,1.59097215,3341.8,3341.7,1.60708]
[1737916674403,2.18953215,3341.8,3341.7,1.0085]
[1737916683607,2.18953215,3341.8,3341.7,1.60708]
[1737916684207,2.18953215,3341.8,3341.7,1.0085]
[1737916684609,1.35163413,3341.8,3341.7,1.0085]
[1737916686411,4.55943413,3341.8,3341.7,1.0085]
[1737916690622,4.55943413,3341.8,3341.7,0.48363503]
[1737916690822,4.55943413,3341.8,3341.7,0.02804339]
[1737916691322,0.59858,3341.7,3341.6,0.9788]
[1737916692025,0.59858,3341.7,3341.6,0.4901]
[1737916696028,3.80638,3341.7,3341.6,0.4901]
[1737916696430,0.59858,3341.7,3341.6,0.4901]
[1737916696623,3.80638,3341.7,3341.6,0.4901]
[1737916698134,0.59873,3340.9,3340.8,0.59873]
[1737916698314,0.59873,3340.9,3340.5,2.08339]
[1737916698315,3.96087413,3340.9,3340.5,2.08339]
[1737916698519,1.35185413,3340.6,3340.5,1.4846]
[1737916700433,1.35185413,3340.6,3340.5,1.48908597]